bitfinex/quotes_BTCUSD_20250408
["timestamp","ask_amount","ask_price","bid_price","bid_amount"]
[1744081945922,0.012496,80020.0,80016.0,0.249949]
[1744081946528,0.249934,80021.0,80016.0,0.262446]
[1744081946725,0.262424,80023.0,80018.0,0.249942]
[1744081946925,0.262424,80023.0,80016.0,0.262446]
[1744081947130,0.012496,80023.0,80018.0,0.249941]
[1744081947340,0.001,80022.0,80018.0,0.249941]
[1744081947501,0.001,80022.0,80018.0,0.262438]
[1744081947707,0.013496,80022.0,80015.0,0.26245]
[1744081948013,0.012496,80021.0,80015.0,0.26245]
[1744081949459,0.26343,80021.0,80015.0,0.26245]
[1744081949655,0.013496,80021.0,80015.0,0.26245]
[1744081949864,0.26343,80021.0,80015.0,0.26245]
[1744081950466,0.26343,80021.0,80015.0,0.012497]
[1744081950666,0.012496,80020.0,80015.0,0.012497]
[1744081951534,0.012496,80020.0,80015.0,0.262448]
[1744081952061,0.013496,80020.0,80015.0,0.262448]
[1744081952507,0.013496,80020.0,80015.0,0.012497]
[1744081952818,0.012497,80019.0,80009.0,0.3793597]
[1744081953115,0.001,80020.0,80015.0,0.012497]
[1744081953387,0.001,80020.0,80019.0,0.262437]
[1744081954959,0.001,80020.0,80016.0,0.3918357]
[1744081955364,0.001,80020.0,80017.0,0.012497]
[1744081955562,0.262426,80023.0,80018.0,0.249943]
[1744081955759,0.012496,80023.0,80018.0,0.34411487]
[1744081955971,0.589884,80038.0,80018.0,0.34411487]
[1744081955972,0.00012608,80028.0,80025.0,0.012496]
[1744081956167,0.00012608,80028.0,80027.0,0.012495]
[1744081956512,0.00012608,80028.0,80027.0,0.1418837]
[1744081956802,0.00012608,80028.0,80027.0,0.17297097]
[1744081958442,0.00112608,80028.0,80027.0,0.17297097]
[1744081958851,0.012495,80027.0,80009.0,0.0954]
[1744081959052,0.012495,80027.0,80018.0,0.249943]
[1744081959222,0.00112608,80028.0,80021.0,0.249931]
[1744081959432,0.00112608,80028.0,80027.0,0.012495]
[1744081959759,0.00012608,80028.0,80027.0,0.1293887]
[1744081959959,0.00012608,80028.0,80027.0,0.1418837]
[1744081960503,0.41325608,80033.0,80027.0,0.1418837]
[1744081960705,0.41325608,80033.0,80027.0,0.20980447]
[1744081961131,0.262397,80032.0,80027.0,0.20980447]
[1744081961398,0.41325608,80033.0,80024.0,0.012496]
[1744081961399,0.16336008,80033.0,80024.0,0.012496]
[1744081961576,0.15086608,80033.0,80029.0,0.012495]
[1744081961909,0.15086608,80033.0,80027.0,0.1293887]
[1744081961910,0.249908,80030.0,80027.0,0.1293887]
[1744081962115,0.262403,80030.0,80027.0,0.1293887]
[1744081962418,0.262403,80030.0,80021.0,0.249931]
[1744081962419,0.249915,80027.0,80021.0,0.262427]
[1744081962544,0.262404,80029.0,80023.0,0.249928]
[1744081963164,0.262404,80029.0,80023.0,0.262424]
[1744081963864,0.26241,80028.0,80022.0,0.1956207]
[1744081964602,0.26241,80028.0,80022.0,0.1418847]
[1744081965126,0.26341,80028.0,80022.0,0.1418847]
[1744081965726,0.012495,80027.0,80022.0,0.1418847]
[1744081966174,0.012495,80026.0,80017.0,0.012497]
[1744081966347,0.249928,80023.0,80018.0,0.1293887]
[1744081966559,0.012495,80026.0,80013.0,0.00012608]
[1744081966560,0.249956,80014.0,80013.0,0.00012608]
[1744081966757,0.012497,80017.0,80013.0,0.12951478]
[1744081966758,0.262445,80017.0,80013.0,0.12951478]
[1744081967112,0.00924317,80022.0,80020.0,0.012496]
[1744081967292,0.249934,80021.0,80016.0,0.012497]
[1744081967491,0.012497,80018.0,80013.0,0.12951478]
[1744081967866,0.262443,80018.0,80013.0,0.12951478]
[1744081968072,0.262453,80014.0,80013.0,0.00212608]
[1744081968253,0.012497,80014.0,80013.0,0.00212608]
[1744081968459,0.012497,80018.0,80013.0,0.25208508]
[1744081968658,0.012497,80018.0,80013.0,0.25008508]
[1744081969204,0.012497,80018.0,80013.0,0.25408508]
[1744081969619,0.249927,80024.0,80014.0,0.26245]
[1744081969754,0.24994,80019.0,80014.0,0.26245]
[1744081969970,0.262437,80019.0,80014.0,0.012497]
[1744081970179,0.262443,80018.0,80013.0,0.00212608]
[1744081970384,0.012497,80016.0,80013.0,0.00212608]
[1744081970618,0.012497,80016.0,80013.0,0.00312608]
[1744081970842,0.012497,80016.0,80013.0,0.00412608]
[1744081971039,0.012497,80016.0,80013.0,0.00312608]
[1744081971454,0.012497,80017.0,80013.0,0.00312608]
[1744081971740,0.012497,80018.0,80013.0,0.01262308]
[1744081972216,0.012497,80018.0,80013.0,0.01362308]
[1744081972591,0.012497,80018.0,80013.0,0.01462308]
[1744081973397,0.30852,80025.0,80018.0,0.262438]
[1744081973683,0.262425,80023.0,80018.0,0.012497]
[1744081973857,0.41021567,80024.0,80018.0,0.262438]
[1744081974035,0.00924767,80023.0,80018.0,0.262438]
[1744081974237,0.00924767,80023.0,80018.0,0.012497]
[1744081974674,0.02174367,80022.0,80016.0,0.262444]
[1744081974881,0.00924767,80021.0,80016.0,0.262444]
[1744081975091,0.012497,80019.0,80013.0,0.00012608]
[1744081975241,0.012497,80018.0,80013.0,0.00012608]
[1744081975659,0.012497,80016.0,80013.0,0.00012608]
[1744081976215,0.012497,80016.0,80014.0,0.05484677]
[1744081976415,0.012497,80016.0,80013.0,0.00012608]
[1744081976985,0.262449,80016.0,80013.0,0.00012608]
[1744081977251,0.060197,80014.0,80013.0,0.00012608]
[1744081977477,0.5774857,80014.0,80013.0,8e-08]
[1744081977690,0.650392,80002.0,79991.0,0.0001681]
[1744081977899,1.3902007,80002.0,79991.0,0.0001681]
[1744081978382,1.39944734,80002.0,79991.0,0.0001681]
[1744081979262,1.40044734,80002.0,80001.0,0.0011681]
[1744081980247,1.40144734,80002.0,80001.0,0.0021681]
[1744081981898,1.53085279,80002.0,80001.0,1e-07]
[1744081982144,0.602526,79992.0,79991.0,3e-07]
[1744081982351,1.8181547,79992.0,79991.0,4.243e-05]
[1744081982501,2.23920134,79992.0,79991.0,4.243e-05]
[1744081982705,2.32670943,79992.0,79991.0,4.243e-05]
[1744081983723,0.602535,79989.0,79988.0,5.3e-07]
[1744081983938,0.74652765,79989.0,79988.0,5.3e-07]
[1744081984154,0.75577429,79989.0,79988.0,5.3e-07]
[1744081984555,0.88517974,79989.0,79988.0,5.3e-07]
[1744081985468,0.88517974,79989.0,79980.0,0.0001681]
[1744081985469,0.012502,79981.0,79980.0,7.3e-07]
[1744081985685,1.0936507,79981.0,79980.0,7.3e-07]
[1744081986364,1.10289734,79981.0,79980.0,7.3e-07]
[1744081986827,1.10289734,79981.0,79961.0,0.004]
[1744081986828,0.602597,79970.0,79961.0,0.004]
[1744081987065,0.7319857,79970.0,79961.0,0.004]
[1744081987296,1.15303234,79970.0,79961.0,0.004]
[1744081988198,1.16003234,79970.0,79969.0,0.0011682]
[1744081988422,1.28943779,79970.0,79969.0,0.0001682]
[1744081988912,1.29643779,79970.0,79969.0,0.0001682]
[1744081989373,1.16703234,79970.0,79969.0,0.0001682]
[1744081989814,1.16703234,79970.0,79961.0,2e-07]
[1744081989815,0.602623,79962.0,79961.0,2e-07]
[1744081990041,2.3354517,79962.0,79961.0,2e-07]
[1744081990502,2.34469834,79962.0,79961.0,2e-07]
[1744081990711,2.47410379,79962.0,79961.0,2e-07]
[1744081990931,2.34469834,79962.0,79961.0,2e-07]
[1744081991141,2.34469834,79962.0,79961.0,0.00042043]
[1744081991142,2.34969834,79962.0,79961.0,0.00042043]
[1744081991348,2.35369834,79962.0,79961.0,0.00042043]
[1744081992429,2.20269834,79962.0,79961.0,0.00042043]
[1744081992692,2.35369834,79962.0,79961.0,0.00042043]
[1744081992912,2.3444517,79962.0,79961.0,0.00042043]
[1744081994017,2.47385715,79962.0,79961.0,0.00042043]
[1744081994663,2.3444517,79962.0,79961.0,0.00042043]
[1744081995751,2.35899255,79962.0,79954.0,0.02053482]
[1744081995906,0.61718785,79955.0,79954.0,0.02011482]
[1744081996106,0.74657655,79955.0,79954.0,0.02011482]
[1744081996551,0.79527655,79955.0,79954.0,0.02011482]
[1744081996985,0.79527655,79955.0,79954.0,0.02111482]
[1744081997131,0.924682,79955.0,79954.0,0.02111482]
[1744081997341,0.262702,79938.0,79933.0,8e-05]
[1744081997539,0.413742,79938.0,79933.0,8e-05]
[1744081998118,0.42302232,79938.0,79933.0,8e-05]
[1744081998574,0.1454318,79938.0,79933.0,8e-05]
[1744081998741,0.4081338,79938.0,79933.0,8e-05]
[1744081998945,0.4091338,79938.0,79937.0,0.0051681]
[1744081999387,0.4101338,79938.0,79937.0,0.0051681]
[1744081999823,0.26191011,79938.0,79937.0,0.0051681]
[1744082000042,0.001,79938.0,79937.0,0.0176771]
[1744082000242,0.16327437,79939.0,79937.0,0.04237591]
[1744082000391,0.16327437,79939.0,79937.0,0.04241802]
[1744082000577,0.16327437,79939.0,79937.0,0.04641802]
[1744082000797,0.001,79938.0,79937.0,0.03390902]
[1744082001202,0.001,79938.0,79937.0,0.02990902]
[1744082001602,0.001,79938.0,79937.0,0.03390902]
[1744082001807,0.001,79938.0,79937.0,0.26540672]
[1744082002036,0.01213881,79952.0,79950.0,0.012507]
[1744082002184,0.01213881,79952.0,79951.0,0.0275186]
[1744082002573,0.15104,79955.0,79951.0,0.0275186]
[1744082003196,0.34,79957.0,79956.0,0.250137]
[1744082003402,0.34937665,79965.0,79951.0,0.0275186]
[1744082003613,0.012507,79954.0,79951.0,0.00748186]
[1744082003815,0.002,79952.0,79949.0,0.0473]
[1744082004266,0.262646,79956.0,79947.0,0.012508]
[1744082004469,0.262655,79953.0,79947.0,0.012508]
[1744082004862,0.25014,79955.0,79948.0,0.26267]
[1744082005087,0.250146,79953.0,79949.0,0.001]
[1744082005536,0.012508,79946.0,79943.0,0.0473]
[1744082005756,0.012507,79954.0,79943.0,0.27249789]
[1744082005980,0.012508,79948.0,79943.0,0.02231989]
[1744082006409,0.012508,79948.0,79942.0,0.012509]
[1744082006643,0.012508,79945.0,79938.0,0.0482]
[1744082006869,0.262681,79945.0,79943.0,0.001]
[1744082007065,0.012508,79944.0,79943.0,0.001]
[1744082007214,0.262686,79943.0,79938.0,0.0482]
[1744082007434,0.012509,79942.0,79938.0,0.0482]
[1744082007636,0.262693,79942.0,79938.0,0.0482]
[1744082008341,0.262693,79942.0,79937.0,0.00021021]
[1744082008552,0.262696,79941.0,79937.0,0.00021021]
[1744082008775,0.012509,79939.0,79938.0,0.009]
[1744082008963,0.012509,79940.0,79938.0,0.009]
[1744082009197,0.012509,79940.0,79938.0,0.011]
[1744082009610,0.012509,79940.0,79938.0,0.009]
[1744082010048,0.001,79939.0,79938.0,0.002]
[1744082010555,0.262702,79938.0,79937.0,0.00021021]
[1744082012296,0.00921101,79938.0,79937.0,0.00021021]
[1744082012734,0.02172001,79938.0,79937.0,0.00021021]
[1744082012964,0.03423799,79938.0,79937.0,0.00021021]
[1744082013388,0.03523799,79938.0,79937.0,0.00721021]
[1744082013607,0.02272899,79938.0,79937.0,0.04998933]
[1744082014040,0.02172899,79938.0,79937.0,0.22307981]
[1744082014496,0.01251798,79938.0,79937.0,0.22807981]
[1744082014714,0.01251798,79938.0,79937.0,0.22307981]
[1744082014924,0.01151798,79938.0,79937.0,0.22307981]
[1744082015164,0.00921101,79952.0,79951.0,0.012507]
[1744082016061,0.02072899,79952.0,79951.0,0.012507]
[1744082017441,0.02172899,79952.0,79951.0,0.012507]
[1744082017887,0.02172899,79952.0,79951.0,0.2396957]
[1744082018330,0.01251798,79952.0,79951.0,0.2396957]
[1744082018530,0.01251798,79952.0,79951.0,0.34121507]
[1744082019107,0.001,79952.0,79951.0,0.34221507]
[1744082019996,0.00921101,79965.0,79963.0,0.012505]
[1744082020222,0.011527,79964.0,79963.0,0.012505]
[1744082020433,0.011527,79964.0,79960.0,0.012506]
[1744082020659,0.011527,79964.0,79963.0,0.250115]
[1744082021111,0.03457476,79964.0,79963.0,0.26262]
[1744082021333,0.03457476,79964.0,79963.0,0.26266211]
[1744082021578,0.011527,79964.0,79963.0,0.26266211]
[1744082021793,0.01122676,79964.0,79963.0,0.26266211]
[1744082022046,0.01122676,79964.0,79963.0,0.3463295]
[1744082022934,0.01122676,79964.0,79963.0,0.4757182]
[1744082023178,0.02304776,79966.0,79965.0,0.262614]
[1744082023415,0.02304776,79978.0,79974.0,0.250081]
[1744082023627,0.02304776,79978.0,79977.0,0.012503]
[1744082023845,0.012502,79987.0,79980.0,0.012503]
[1744082024058,0.262545,79986.0,79981.0,0.012502]
[1744082024478,0.02303645,79985.0,79981.0,0.012502]
[1744082024848,0.262545,79986.0,79981.0,0.012502]
[1744082025080,0.262545,79986.0,79982.0,0.02373977]
[1744082025272,0.00921056,79985.0,79982.0,0.27379577]
[1744082025481,0.02171256,79986.0,79982.0,0.27379577]
[1744082025722,0.02301713,79985.0,79982.0,0.02373977]
[1744082025972,0.02601713,79985.0,79982.0,0.02373977]
[1744082026197,0.262552,79984.0,79982.0,0.02373977]
[1744082026617,0.250068,79978.0,79975.0,0.01785198]
[1744082026827,0.262591,79972.0,79965.0,0.262613]
[1744082027027,0.012504,79970.0,79965.0,0.262614]
[1744082027276,0.250087,79972.0,79967.0,0.262608]
[1744082027442,0.012503,79975.0,79970.0,0.012504]
[1744082027644,0.262581,79976.0,79969.0,0.012504]
[1744082028433,0.001,79970.0,79969.0,0.2626]
[1744082028634,0.001,79970.0,79969.0,0.30329833]
[1744082029019,0.001,79970.0,79969.0,0.30529833]
[1744082029465,0.001,79970.0,79969.0,0.43268703]
[1744082029747,0.34,79982.0,79977.0,0.250071]
[1744082029992,0.15092,79987.0,79981.0,0.012502]
[1744082030247,0.0003366,79994.0,79993.0,0.262522]
[1744082031509,0.0043366,79994.0,79993.0,0.262522]
[1744082032183,0.0083366,79994.0,79993.0,0.262522]
[1744082033013,0.0083366,79994.0,79991.0,0.250025]
[1744082033236,0.262522,79993.0,79992.0,0.0537573]
[1744082033610,0.250031,79990.0,79983.0,0.25005]
[1744082033813,0.250037,79988.0,79983.0,0.25005]
[1744082034029,0.262538,79988.0,79982.0,0.01668967]
[1744082034398,0.262542,79987.0,79980.0,0.262565]
[1744082034842,0.262542,79987.0,79981.0,0.012502]
[1744082035286,0.012502,79987.0,79982.0,0.262558]
[1744082035505,0.013501,79988.0,79987.0,0.012502]
[1744082035506,0.001,79988.0,79987.0,0.012502]
[1744082035721,0.004,79993.0,79992.0,0.012501]
[1744082035933,0.004,79993.0,79992.0,0.262526]
[1744082036162,0.250028,79991.0,79986.0,0.012502]
[1744082036392,0.001,79988.0,79984.0,0.262548]
[1744082036620,0.001,79988.0,79986.0,0.250042]
[1744082036851,0.001,79988.0,79987.0,0.012502]
[1744082037096,0.001,79988.0,79987.0,0.1418907]
[1744082037350,0.003,79993.0,79992.0,0.262526]
[1744082038015,0.352499,80001.0,79993.0,0.012501]
[1744082038241,0.2625,80000.0,79993.0,0.012501]
[1744082038972,0.250008,79998.0,79993.0,0.012501]
[1744082039208,0.012501,79988.0,79985.0,0.06096668]
[1744082039456,0.012501,79992.0,79986.0,0.03110267]
[1744082039676,0.012501,79992.0,79980.0,0.25006]
[1744082039677,0.25004,79987.0,79980.0,0.262563]
[1744082039973,0.012502,79983.0,79977.0,0.250071]
[1744082040242,0.012502,79983.0,79978.0,0.0939556]
[1744082040465,0.012502,79983.0,79978.0,0.1064586]
[1744082040646,0.012502,79987.0,79982.0,0.250055]
[1744082040858,0.012502,79986.0,79980.0,0.262563]
[1744082041297,0.001,79983.0,79980.0,0.262563]
[1744082041444,0.001,79983.0,79981.0,0.03130354]
[1744082041645,0.012502,79986.0,79981.0,0.03130354]
[1744082042036,0.012502,79983.0,79980.0,0.009]
[1744082042271,0.012502,79982.0,79980.0,0.009]
[1744082043326,0.262561,79981.0,79980.0,0.009]
[1744082043812,0.311361,79981.0,79980.0,0.009]
[1744082044010,0.651361,79981.0,79980.0,0.009]
[1744082044271,0.26263,79961.0,79955.0,0.262647]
[1744082044465,0.250137,79956.0,79953.0,4.211e-05]
[1744082044671,0.012506,79960.0,79953.0,4.211e-05]
[1744082044882,0.012506,79958.0,79953.0,0.01254911]
[1744082045299,0.262635,79959.0,79953.0,0.26269411]
[1744082045512,0.250135,79957.0,79953.0,0.26269411]
[1744082046437,0.250135,79957.0,79953.0,0.00104211]
[1744082046648,0.012506,79956.0,79953.0,0.00104211]
[1744082046859,0.012506,79958.0,79955.0,0.009]
[1744082047049,0.352506,79960.0,79955.0,0.009]
[1744082047256,0.34,79960.0,79954.0,0.012507]
[1744082047397,0.012506,79960.0,79955.0,0.262647]
[1744082047572,0.012506,79960.0,79956.0,0.07890011]
[1744082047784,0.26262,79963.0,79957.0,0.012506]
[1744082048002,0.012506,79960.0,79956.0,0.07890011]
[1744082048377,0.262629,79961.0,79955.0,0.012507]
[1744082048635,0.262634,79960.0,79955.0,0.262645]
[1744082048812,0.262634,79960.0,79955.0,0.012507]
[1744082049017,0.012506,79961.0,79955.0,0.012507]
[1744082049244,0.262628,79961.0,79955.0,0.012507]
[1744082049459,0.012505,79966.0,79956.0,0.262643]
[1744082049692,0.002,79960.0,79957.0,0.012506]
[1744082050022,0.012506,79956.0,79953.0,4.211e-05]
[1744082050131,0.012507,79954.0,79953.0,4.211e-05]
[1744082051642,0.012507,79954.0,79953.0,0.00204211]
[1744082052314,0.34,79959.0,79956.0,0.012506]
[1744082052524,0.34,79959.0,79957.0,0.02761981]
[1744082052726,0.059504,79972.0,79959.0,0.012506]
[1744082052934,0.012504,79970.0,79964.0,0.012505]
[1744082053089,0.250106,79966.0,79959.0,0.012506]
[1744082053289,0.34,79971.0,79965.0,0.250109]
[1744082053494,0.012504,79970.0,79965.0,0.250109]
[1744082053676,0.352504,79969.0,79964.0,0.012505]
[1744082054098,0.012505,79967.0,79961.0,0.262627]
[1744082054363,0.2501,79968.0,79962.0,0.3414099]
[1744082054821,0.2501,79968.0,79964.0,0.262617]
[1744082055025,0.262607,79968.0,79963.0,0.012505]
[1744082055429,0.26261,79967.0,79961.0,0.012506]
[1744082055854,0.012505,79967.0,79962.0,0.250118]
[1744082056070,0.012505,79967.0,79963.0,0.0775386]
[1744082056533,0.006,79968.0,79964.0,0.250112]
[1744082056696,0.346,79968.0,79964.0,0.262617]
[1744082056906,0.002,79967.0,79963.0,0.0900436]
[1744082057915,0.004,79967.0,79963.0,0.0900436]
[1744082058154,0.004,79967.0,79964.0,0.04772054]
[1744082058365,0.004,79967.0,79964.0,0.29783254]
[1744082058595,0.004,79967.0,79964.0,0.06022554]
[1744082058810,0.006,79967.0,79964.0,0.04772054]
[1744082059351,0.002,79967.0,79964.0,0.04772054]
[1744082059534,0.002,79967.0,79965.0,0.28239395]
[1744082059682,0.004,79967.0,79965.0,0.28239395]
[1744082059885,0.004,79967.0,79966.0,0.012505]
[1744082060113,0.002,79967.0,79966.0,0.1418937]
[1744082060324,0.002,79967.0,79966.0,0.22193304]
[1744082060551,0.01189542,79983.0,79979.0,0.012503]
[1744082060774,0.34,79986.0,79979.0,0.012503]
[1744082060935,0.262537,79989.0,79982.0,0.012502]
[1744082061112,0.262548,79986.0,79979.0,0.262568]
[1744082061324,0.262548,79986.0,79980.0,0.0275071]
[1744082062034,0.262553,79984.0,79980.0,0.0275071]
[1744082062234,0.012502,79983.0,79980.0,0.0275071]
[1744082062607,0.262557,79983.0,79980.0,0.0275071]
[1744082063618,0.012502,79983.0,79980.0,0.0275071]
[1744082063895,0.264557,79983.0,79981.0,0.02021344]
[1744082064292,0.264557,79983.0,79978.0,0.012503]
[1744082064460,0.262561,79982.0,79977.0,0.262572]
[1744082065067,0.262564,79981.0,79976.0,0.012503]
[1744082065317,0.012502,79981.0,79976.0,0.012503]
[1744082065513,0.012503,79980.0,79976.0,0.0822253]
[1744082067327,0.012503,79980.0,79975.0,0.262579]
[1744082068104,0.012502,79981.0,79976.0,0.012503]
[1744082068302,0.012502,79981.0,79976.0,0.262575]
[1744082068848,0.001,79980.0,79976.0,0.262575]
[1744082069283,0.352501,79988.0,79981.0,0.262558]
[1744082069411,0.012502,79986.0,79982.0,0.0787706]
[1744082069609,0.262548,79985.0,79982.0,0.0787706]
[1744082069822,0.262555,79983.0,79976.0,0.262577]
[1744082070018,0.250061,79981.0,79976.0,0.262577]
[1744082070224,0.012503,79976.0,79971.0,0.262591]
[1744082070477,0.012503,79976.0,79972.0,0.1293887]
[1744082070782,0.012503,79979.0,79974.0,0.262585]
[1744082071042,0.012502,79981.0,79976.0,0.262578]
[1744082071253,0.001,79980.0,79977.0,0.012503]
[1744082071496,0.001,79980.0,79979.0,0.012503]
[1744082071715,0.3403364,79999.0,79991.0,0.250025]
[1744082071919,0.16296753,79995.0,79993.0,0.262522]
[1744082072125,0.16296753,79995.0,79992.0,0.012501]
[1744082072330,0.3403366,79994.0,79992.0,0.012501]
[1744082072531,0.3403366,79994.0,79993.0,0.012501]
[1744082072925,0.3403366,79994.0,79992.0,0.012501]
[1744082073110,0.3443366,79994.0,79990.0,0.250031]
[1744082074133,0.3473366,79994.0,79990.0,0.250031]
[1744082074334,0.3433366,79994.0,79990.0,0.250031]
[1744082074546,0.3403366,79994.0,79990.0,0.250031]
[1744082074834,0.3443366,79994.0,79990.0,0.250031]
[1744082075041,0.3473366,79994.0,79990.0,0.3083687]
[1744082075304,0.3513366,79994.0,79990.0,0.3083687]
[1744082075692,0.3513366,79994.0,79990.0,0.0583377]
[1744082076026,0.012501,79991.0,79984.0,0.308351]
[1744082076225,0.012501,79991.0,79985.0,0.1293887]
[1744082076401,0.012502,79985.0,79980.0,0.250062]
[1744082076602,0.250046,79986.0,79980.0,0.250062]
[1744082076603,0.262548,79986.0,79980.0,0.250062]
[1744082077058,0.012502,79987.0,79981.0,0.262558]
[1744082077393,0.012502,79987.0,79983.0,0.250052]
[1744082077777,0.002,79991.0,79990.0,0.250031]
[1744082077979,0.002,79991.0,79984.0,0.1293887]
[1744082078341,0.014501,79991.0,79984.0,0.1293887]
[1744082078512,0.012501,79991.0,79984.0,0.17109794]
[1744082078716,0.012501,79991.0,79983.0,0.250053]
[1744082078717,0.012502,79987.0,79983.0,0.250053]
[1744082079098,0.012502,79987.0,79982.0,0.012502]
[1744082079301,0.250034,79989.0,79982.0,0.012502]
[1744082079721,0.250034,79989.0,79982.0,0.262555]
[1744082079928,0.262535,79989.0,79982.0,0.262555]
[1744082080467,0.25004,79987.0,79982.0,0.262555]
[1744082080675,0.012501,79988.0,79983.0,0.012502]
[1744082081644,0.25004,79987.0,79982.0,0.012502]
[1744082081854,0.24904,79987.0,79983.0,0.0335377]
[1744082082083,0.012501,79988.0,79984.0,0.25005]
[1744082082528,0.250034,79990.0,79984.0,0.25005]
[1744082082755,0.012501,79989.0,79983.0,0.0460397]
[1744082082985,0.012501,79989.0,79984.0,0.00710447]
[1744082083916,0.012501,79989.0,79984.0,0.01960647]
[1744082084122,0.001,79989.0,79984.0,0.01960647]
[1744082084369,0.001,79989.0,79984.0,0.26965347]
[1744082085213,0.002,79989.0,79985.0,0.012502]
[1744082085427,0.002,79989.0,79985.0,0.262545]
[1744082085949,0.002,79989.0,79988.0,0.262538]
[1744082086256,0.0003366,79994.0,79992.0,0.250024]
[1744082086454,0.0003366,79994.0,79993.0,0.1418897]
[1744082086590,0.0003366,79994.0,79993.0,0.1891897]
[1744082086803,0.0003366,79994.0,79993.0,0.21257375]
[1744082087057,0.0003366,79994.0,79993.0,0.24611145]
[1744082088700,0.0033366,79994.0,79993.0,0.24611145]
[1744082088904,0.0063366,79994.0,79993.0,0.24611145]
[1744082099265,0.0063366,79994.0,79993.0,0.26315208]
[1744082099531,0.0063366,79994.0,79993.0,0.2606523]
[1744082099769,0.0063366,79994.0,79993.0,0.6750523]
[1744082101143,0.0033366,79994.0,79993.0,0.6750523]
[1744082101378,0.0003366,79994.0,79993.0,0.6790523]
[1744082101800,0.0003366,79994.0,79993.0,0.6840523]
[1744082102033,0.0003366,79994.0,79993.0,0.6800523]
[1744082102213,0.0003366,79994.0,79993.0,0.6850523]
[1744082102684,0.0003366,79994.0,79993.0,0.58967375]
[1744082103179,0.0003366,79994.0,79993.0,0.03338405]
[1744082103396,0.0003366,79994.0,79993.0,0.260021]
[1744082103614,0.0128366,79994.0,79993.0,0.01]
[1744082103848,0.0128366,79994.0,79993.0,0.03338405]
[1744082104283,0.0128366,79994.0,79993.0,0.01]
[1744082104488,0.262532,79990.0,79989.0,0.02338405]
[1744082104868,0.262532,79990.0,79984.0,0.27343305]
[1744082105066,0.262522,79993.0,79986.0,0.262545]
[1744082105486,0.262522,79993.0,79987.0,0.012502]
[1744082105911,0.012502,79987.0,79979.0,0.012503]
[1744082106215,0.012501,79992.0,79984.0,0.015502]
[1744082106567,0.012501,79992.0,79987.0,0.012502]
[1744082106989,0.0003366,79994.0,79987.0,0.30782703]
[1744082107437,0.0003366,79994.0,79990.0,0.012501]
[1744082107636,0.0003366,79994.0,79987.0,0.30782703]
[1744082107956,0.0003366,79994.0,79989.0,0.250034]
[1744082108522,0.0003366,79994.0,79990.0,0.001]
[1744082108723,0.0003366,79994.0,79991.0,0.05812418]
[1744082109935,0.0003366,79994.0,79991.0,0.06012418]
[1744082110559,0.0128366,79994.0,79991.0,0.06012418]
[1744082110765,0.250021,79993.0,79991.0,0.06012418]
[1744082110973,0.250021,79993.0,79991.0,0.002]
[1744082111209,0.0128366,79994.0,79991.0,0.002]
[1744082111874,0.0128366,79994.0,79989.0,0.250032]
[1744082112105,0.0128366,79994.0,79991.0,0.003]
[1744082112500,0.0128366,79994.0,79991.0,0.001]
[1744082112709,0.0128366,79994.0,79991.0,0.07997411]
[1744082112908,0.0128366,79994.0,79991.0,0.08197411]
[1744082113783,0.0128366,79994.0,79991.0,0.08297411]
[1744082114594,0.0003366,79994.0,79993.0,0.012501]
[1744082114810,0.0003366,79994.0,79993.0,0.1443896]
[1744082115055,0.0003366,79994.0,79993.0,0.1677881]
[1744082115940,0.0003366,79994.0,79993.0,0.1707881]
[1744082116156,0.0003366,79994.0,79993.0,0.26761388]
[1744082116380,0.0003366,79994.0,79993.0,0.26511398]
[1744082118519,0.0003366,79994.0,79993.0,0.32645483]
[1744082119561,0.0003366,79994.0,79993.0,0.32345483]
[1744082119720,0.0013366,79994.0,79993.0,0.2180882]
[1744082119918,0.0013366,79994.0,79993.0,0.1762882]
[1744082124013,0.0013366,79994.0,79993.0,0.17878814]
[1744082124259,0.0013366,79994.0,79993.0,0.27641393]
[1744082124525,0.0013366,79994.0,79993.0,0.27391399]
[1744082126193,0.0013366,79994.0,79993.0,0.0343985]
[1744082126392,0.0013366,79994.0,79993.0,0.011]
[1744082126608,0.0138366,79994.0,79993.0,0.011]
[1744082128118,0.0128366,79994.0,79993.0,0.005]
[1744082128330,0.012502,79983.0,79978.0,0.02339635]
[1744082128529,0.012502,79983.0,79977.0,0.262574]
[1744082128530,0.012502,79983.0,79979.0,0.02339635]
[1744082128930,0.012502,79983.0,79978.0,0.02339635]
[1744082129165,0.012502,79982.0,79978.0,0.02339635]
[1744082129335,0.26258,79976.0,79971.0,4.211e-05]
[1744082129545,0.26258,79976.0,79972.0,0.1293887]
[1744082129694,0.012503,79975.0,79972.0,0.1293887]
[1744082129909,0.250069,79978.0,79972.0,0.1293887]
[1744082130114,0.012503,79979.0,79973.0,0.262588]
[1744082130318,0.250071,79977.0,79972.0,0.1293887]
[1744082130525,0.262578,79976.0,79971.0,0.25013211]
[1744082130874,0.012503,79978.0,79973.0,0.012504]
[1744082131127,0.262571,79978.0,79973.0,0.262588]
[1744082131385,0.250053,79983.0,79977.0,0.012503]
[1744082131619,0.250053,79983.0,79977.0,0.18836673]
[1744082131847,0.250053,79983.0,79977.0,0.43843473]
[1744082132078,0.262555,79983.0,79977.0,0.43843473]
[1744082132291,0.012503,79977.0,79973.0,0.002]
[1744082132647,0.012503,79976.0,79973.0,0.001]
[1744082133790,0.001,79983.0,79975.0,0.250078]
[1744082134021,0.001,79983.0,79978.0,0.012503]
[1744082134233,0.001,79983.0,79982.0,0.262558]
[1744082134461,0.001,79983.0,79982.0,0.3919467]
[1744082134668,0.002,79983.0,79982.0,0.3919467]
[1744082134890,0.001,79983.0,79982.0,0.3919467]
[1744082135119,0.001,79983.0,79982.0,0.60791525]
[1744082135333,0.0003366,79994.0,79993.0,0.262522]
[1744082135573,0.0003366,79994.0,79993.0,0.41528134]
[1744082137457,0.0003366,79994.0,79993.0,0.02337064]
[1744082137700,0.0003366,79994.0,79993.0,0.250021]